Cogmind - Beta 17.1 @@@ ROGUE MODE // 2026.09.01 @ 23:36:36 Player: 4R-ZE3 Result: Self-destructed Performance ------------- Evolutions (2) 1000 Regions Visited (3) 600 Robots Destroyed (48) 240 Value Destroyed (1253) 1253 Prototype IDs (14) 280 Alien Tech Used (0) 0 Bonus (0) 0 TOTAL SCORE: 3373 Bonus ------- None Cogmind --------- Core Integrity 488/550 Matter 210/300 Energy 265/265 System Corruption 0% Temperature Cool (0) Movement Treading (240) Ox1 Location -8/Materials Parts ------- > --- POWER (1) -------- Improved Ion Engine > --- PROPULSION (3) --- Light Treads Light Treads Light Treads > --- UTILITY (4) ------ Cooling System Huge Storage Unit Advanced Targeting Computer Hacking Suite > --- WEAPON (3) ------- Improved Light Cannon Improved Light Cannon Battle Cannon > --- INVENTORY (25) --- Light Treads Cargo Legs Improved Heat Sink Improved Heat Sink Advanced Heat Sink Large Storage Unit Trap Scanner Advanced Targeting Computer Medium Armor Plating High-powered Tractor Beam Particle Gun Particle Gun Field Laser Field Laser Pulse Rifle Heavy Assault Rifle Heavy Assault Rifle Heavy Assault Rifle Heavy Assault Rifle Minigun Improved Light Cannon Flak Cannon Grenade Launcher Mining Claw Peak State ------------ > --- POWER ------------ Improved Ion Engine > --- PROPULSION ------- Light Treads Light Treads Light Treads > --- UTILITY ---------- Cooling System Huge Storage Unit Trap Scanner Advanced Targeting Computer > --- WEAPON ----------- Improved Light Cannon Improved Light Cannon Battle Cannon > --- INVENTORY -------- Light Treads Cargo Legs Improved Heat Sink Improved Heat Sink Advanced Heat Sink Large Storage Unit Advanced Targeting Computer Medium Armor Plating Hacking Suite High-powered Tractor Beam Particle Gun Particle Gun Field Laser Field Laser Pulse Rifle Heavy Assault Rifle Heavy Assault Rifle Heavy Assault Rifle Heavy Assault Rifle Minigun Improved Light Cannon Flak Cannon Grenade Launcher Mining Claw [Rating: 27] Favorites ----------- Power Ion Engine Engine Ion Engine Power Core Light Nuclear Core Propulsion Light Treads Treads Light Treads Utility Medium Armor Plating Device Cooling System Storage Large Storage Unit Processor Advanced Targeting Computer Hackware Hacking Suite Protection Medium Armor Plating Weapon Improved Light Cannon Energy Gun Medium Laser Ballistic Gun Assault Rifle Ballistic Cannon Improved Light Cannon Launcher Grenade Launcher Slashing Weapon Mining Claw Build | -11 -10 -10 -8 ------- Run | Yrd Mat Sub Mat Slots Evolved 4 | . . . 4 Power . | . . . . Propulsion 1 | . . . 1 Utility 2 | . . . 2 Weapon 1 | . . . 1 Parts Attached 33 | 6 10 6 11 Power 4 | 1 1 1 1 Engine 3 | 1 . 1 1 Core 1 | . 1 . . Reactor . | . . . . Propulsion 6 | 2 . 2 2 Treads 6 | 2 . 2 2 Leg . | . . . . Wheel . | . . . . Hover . | . . . . Flight . | . . . . Utility 13 | 1 4 1 7 Device 3 | . . . 3 Storage 3 | 1 1 . 1 Processor 1 | . . . 1 Hackware 1 | . . . 1 Protection 5 | . 3 1 1 Artifact . | . . . . Weapon 10 | 2 5 2 1 Energy Gun 2 | 1 1 . . Energy Cannon . | . . . . Ballistic Gun 1 | 1 . . . Ballistic Cannon 5 | . 2 2 1 Launcher 1 | . 1 . . Special Weapon . | . . . . Impact Weapon . | . . . . Slashing Weapon 1 | . 1 . . Piercing Weapon . | . . . . Special Melee Weapon . | . . . . Unidentified Prototypes . | . . . . Parts Lost 8 | . . 5 3 Power 2 | . . 1 1 Propulsion 3 | . . 2 1 Utility 2 | . . 1 1 Weapon 1 | . . 1 . Highest Loss Streak 4 | . . 4 2 To Critical Strikes . | . . . . Average Backups 13 | 2 12 13 17 Power . | . 1 . . Propulsion 2 | . 2 3 2 Utility 3 | . 2 3 4 Weapon 6 | . 5 5 10 Tool/Special . | . . . . Unused Backups 20 | . 3 . 17 Power . | . . . . Propulsion 4 | . 1 . 3 Utility 5 | . 1 . 4 Weapon 11 | . 1 . 10 Tool/Special . | . . . . Average Slot Usage (%) 96 | . 97 98 94 Engine 6 | . 4 9 8 Core 5 | . 9 4 . Treads 27 | . 28 27 25 Device 3 | . . . 9 Storage 12 | . 14 14 9 Processor 1 | . . . 4 Protection 11 | . 11 13 9 Ballistic Cannon 26 | . 25 28 26 Peak Build Rating 27 | 6 14 14 27 Average Rating 15 | 4 11 13 22 On Entrance 8 | . 6 14 13 Avg Prop Armor Cover (%) . | . . . . Naked Turns . | . . . . Heaviest Build 107 | 14 40 40 107 Greatest Support 60 | 40 40 40 60 Greatest Overweight (x) 4 | 4 . . 1 Average Overweight (x) . | . . . . Largest Inventory Capacity 25 | 8 15 15 25 Average Capacity 16 | 7 13 15 20 Most Carried 25 | 4 15 15 25 Average Carried 14 | 2 12 13 18 Final Capacity 25 | 8 15 15 25 Final Carried 25 | 4 15 12 25 Class Distribution -------------------- 70% | Mutant 11% | Scavenger-Tank 8% | Gunner 7% | Scavenger-Gunner Dominant Class ---------------- Mutant | -10/Materials Mutant | -10/Subcaves Scavenger-Tank | -8/Materials Resources | -11 -10 -10 -8 ----------- Run | Yrd Mat Sub Mat Matter Collected 1430 | 178 613 130 509 Remotely . | . . . . Salvage Created 1069 | . 622 32 415 Parts 80 | . 52 1 27 Haulers Intercepted 4 | . 2 . 2 Recyclers Shooed 1 | . 1 . . Parts Field Recycled . | . . . . Retrieved Matter . | . . . . Parts Self-Destructed 6 | . . 6 . Prevented . | . . . . Parts Restored . | . . . . Kills | -11 -10 -10 -8 ------- Run | Yrd Mat Sub Mat Combat Hostiles Destroyed 38 | . 23 2 13 Cannons 28 | . 15 2 11 AOE 10 | . 8 . 2 Classes Destroyed 11 | . 6 1 4 Worker 1 | . . . 1 Builder 1 | . . . 1 Tunneler 1 | . . . 1 Hauler 4 | . 2 . 2 Recycler 1 | . 1 . . Mechanic 1 | . 1 . . Watcher 1 | . 1 . . Swarmer 12 | . 9 . 3 Grunt 20 | . 14 . 6 Sentry 4 | . . . 4 Subdweller 2 | . . 2 . Best Kill Streak 6 | . 6 2 6 Combat Bots Only 5 | . 5 2 5 Max Kills in Single Turn 4 | . 4 1 2 Gunslinging . | . . . . Exploded 3 | . 3 . 1 Melee . | . . . . Uniques/NPCs Destroyed . | . . . . Combat | -11 -10 -10 -8 -------- Run | Yrd Mat Sub Mat Hostile Shots Fired 154 | . 69 31 54 Missed 34 | . 20 5 9 Hits 120 | . 49 26 45 Projectile 120 | . 49 26 45 Critical Strikes 3 | . 2 . 1 Damage Taken 1743 | . 494 587 662 Core 238 | . 100 76 62 Absorbed by Shields . | . . . . Redirected to Shielding 27 | . 27 . . Core Remaining (%) 64 | 100 . 29 . Volleys Fired 96 | . 47 18 31 Largest 3 | . 2 2 3 Hottest 99 | . 66 66 99 Shots Fired 208 | . 89 30 89 Gun . | . . . . Cannon 201 | . 84 30 87 Launcher 7 | . 5 . 2 Special . | . . . . Kinetic 201 | . 84 30 87 Thermal . | . . . . Explosive 7 | . 5 . 2 Electromagnetic . | . . . . Robot Hit Streak 18 | . 11 17 18 Robot Miss Streak 4 | . 2 2 4 Penetration Max . | . . . . Secondary Targets . | . . . . Shots Hit Robots 129 | . 52 20 57 Core Hits 63 | . 31 4 28 Critical Kills . | . . . . Critical Parts Destroyed . | . . . . Critical Strikes 6 | . 1 1 4 Blast 6 | . 1 1 4 Melee Attacks 5 | . 5 . . Impact . | . . . . Slashing 5 | . 5 . . Piercing . | . . . . Sneak Attacks . | . . . . Combat Hostiles . | . . . . Follow-up Attacks . | . . . . Damage Inflicted 3427 | . 1539 419 1469 Guns . | . . . . Cannons 2880 | . 1115 419 1346 Explosions 547 | . 424 . 123 Melee . | . . . . Ramming . | . . . . Kinetic 2880 | . 1115 419 1346 Thermal . | . . . . Explosive 547 | . 424 . 123 Electromagnetic . | . . . . Impact . | . . . . Slashing . | . . . . Piercing . | . . . . Highest Corruption 2 | . 2 2 . Average Corruption 2 | . 2 2 . Corruption Purged . | . . . . Corruption Blocked . | . . . . Effects 17 | . 7 10 . Message Errors 6 | . 2 4 . Matter Fused 2 | . 1 1 . Heat Flow Errors 2 | . 1 1 . Energy Discharges 4 | . 2 2 . Parts Rejected 1 | . . 1 . Data Loss (minor) 1 | . 1 . . Alerts 1 | . . 1 . Overload Shots . | . . . . Overflow Damage . | . . . . Projectiles . | . . . . Explosions . | . . . . Melee . | . . . . Knockbacks 20 | . 13 . 7 Impact . | . . . . Kinetic 18 | . 11 . 7 Secondary 2 | . 2 . . Self-Inflicted Damage . | . . . . Shots . | . . . . Rammed . | . . . . Targets Rammed . | . . . . Kicked . | . . . . Crushed . | . . . . Highest Temperature 205 | . 117 205 51 Average Temperature 40 | . 42 115 24 Received Heat Transfer 609 | . 207 60 342 Siege Activations . | . . . . Martial Activations . | . . . . Shielding Activations . | . . . . Robots Disrupted . | . . . . Combat Hostiles . | . . . . Robots Corrupted . | . . . . Combat Hostiles . | . . . . Parts Fried . | . . . . Impact Corruptions . | . . . . Robots Melted . | . . . . Combat Hostiles . | . . . . Parts Melted . | . . . . Heat Transferred . | . . . . Parts Sabotaged . | . . . . Parts Stolen . | . . . . Parts Stripped . | . . . . Power Chain Reactions . | . . . . Alert | -11 -10 -10 -8 ------- Run | Yrd Mat Sub Mat Maximum Alert Level 1 | . 1 . . Low Security (%) 64 | 100 36 . 100 Level 1 35 | . 63 . . Level 2 . | . . . . Level 3 . | . . . . Level 4 . | . . . . Level 5 . | . . . . High Security . | . . . . Max Security . | . . . . Peak Influence 377 | . 377 . 172 Initial . | . . . . Average 136 | . 201 . 59 Influence Increases 1197 | . 733 . 464 Destroy 0b10 Robot/C 720 | . 460 . 260 Destroy 0b10 Robot/NC 50 | . 25 . 25 Destroy Leader 180 | . 106 . 74 Successful Hack 18 | . 12 . 6 Select Force Hacks 60 | . 60 . . Disable Machine 45 | . 30 . 15 Destroy Structure 49 | . 25 . 24 Partial Spotted 15 | . . . 15 Lose Combat Pursuer 60 | . 15 . 45 Influence Decreases 1138 | . 453 280 405 Entered New Map 135 | . . 135 . Time Decay 968 | . 453 135 380 Lost Part 35 | . . 10 25 Squads Dispatched 6 | . 5 . 1 Investigation 2 | . 2 . . Extermination . | . . . . Reinforcement 4 | . 3 . 1 Assault . | . . . . Garrison . | . . . . Intercept . | . . . . Searches Triggered . | . . . . Construction Impeded . | . . . . Haulers Reinforced . | . . . . Active Scanning Responses . | . . . . Cargo Convoy Interrupts . | . . . . Stealth | -11 -10 -10 -8 --------- Run | Yrd Mat Sub Mat Distress Signals 6 | . 3 . 3 Communications Jammed . | . . . . Distress Signals . | . . . . Times Spotted 60 | . 35 2 23 Peak Tracking Total 6 | . 5 2 6 Tactical Retreats 4 | . 1 . 3 Traps | -11 -10 -10 -8 ------- Run | Yrd Mat Sub Mat Traps Triggered 2 | . 1 1 . Indirectly . | . . . . Trap Hack Attempts . | . . . . Triggered . | . . . . Disarmed . | . . . . Reprogrammed . | . . . . Reused . | . . . . Traps Extracted . | . . . . Installed . | . . . . Triggered . | . . . . Machines | -11 -10 -10 -8 ---------- Run | Yrd Mat Sub Mat Machines Disabled 4 | . 2 1 1 Max in Single Turn 1 | . 1 1 1 Machines Repaired . | . . . . Machines Dismantled . | . . . . Machines Sabotaged . | . . . . Overloaded Fab Kills . | . . . . Hacking | -11 -10 -10 -8 --------- Run | Yrd Mat Sub Mat Machines Accessed 8 | . 4 1 3 Terminals 5 | . 2 . 3 Fabricators . | . . . . Repair Stations . | . . . . Recycling Units 2 | . 2 . . Scanalyzers . | . . . . Garrison Access . | . . . . Total Hacks 19 | . 10 1 8 Successful 7 | . 4 1 2 Failed 12 | . 6 . 6 Catastrophic 3 | . 1 . 2 Database Lockouts . | . . . . Manual 13 | . 9 . 4 Terminals 13 | . 5 . 8 Fabricators . | . . . . Repair Stations . | . . . . Recycling Units 5 | . 5 . . Scanalyzers . | . . . . Garrison Access . | . . . . Terminal Hacks 4 | . 2 1 1 Robot Analysis 2 | . 2 . . Branch Access Points 1 | . . . 1 Proto ID Catalog 1 | . . 1 . Fabricator Hacks . | . . . . Repair Station Hacks . | . . . . Recycling Unit Hacks . | . . . . Scanalyzer . | . . . . Garrison Access Hacks . | . . . . Unauthorized Hacks 3 | . 2 . 1 Terminals 1 | . . . 1 Botnet 1 | . . . 1 Fabricators . | . . . . Repair Stations . | . . . . Recycling Units 2 | . 2 . . Tunnel 2 | . 2 . . Scanalyzers . | . . . . Garrison Access . | . . . . Data Cores Recovered . | . . . . Used . | . . . . Hacking Detections 6 | . 4 . 2 Full Trace Events 1 | . . . 1 Feedback Events . | . . . . Feedback Blocked . | . . . . Robot Schematics Acquired . | . . . . Robots Built . | . . . . Authchips . | . . . . Time . | . . . . Total Robot Build Rating . | . . . . Part Schematics Acquired . | . . . . Parts Built . | . . . . Authchips . | . . . . Time . | . . . . Total Part Build Rating . | . . . . Part Studies Acquired . | . . . . Parts Repaired . | . . . . Time . | . . . . Parts Recycled . | . . . . Recycled Matter . | . . . . Retrieved Matter . | . . . . Retrieved Components . | . . . . Parts Scanalyzed . | . . . . Part Schematics Acquired . | . . . . Parts Damaged . | . . . . Bothacking | -11 -10 -10 -8 ------------ Run | Yrd Mat Sub Mat Used RIF Installer . | . . . . Robots Hacked . | . . . . Non-combat . | . . . . Combat . | . . . . Robot Hacks Applied . | . . . . Relay Couplers Released . | . . . . Fabnet Peak Effective % . | . . . . Robots Rewired . | . . . . Allies Hacked . | . . . . Hacks Repelled . | . . . . Allies | -11 -10 -10 -8 -------- Run | Yrd Mat Sub Mat Total Allies . | . . . . Largest Group . | . . . . Highest-Rated Group . | . . . . Highest-Rated Ally . | . . . . Total Orders . | . . . . Ally Attacks . | . . . . Total Damage . | . . . . Kills . | . . . . Allies Corrupted . | . . . . Allies Melted . | . . . . Intel | -11 -10 -10 -8 ------- Run | Yrd Mat Sub Mat Active Infowar (turns) 113 | . . . 113 Traps 113 | . . . 113 Robot Analysis Total 2 | . 2 . . Derelict Logs Recovered . | . . . . Drone Launches . | . . . . Drone Recoveries . | . . . . Exploration | -11 -10 -10 -8 ------------- Run | Yrd Mat Sub Mat Turns Passed 3538 | 110 1570 725 1133 Spaces Moved 1676 | 50 778 409 439 Core 15 | 15 . . . Treads 1661 | 35 778 409 439 Legs . | . . . . Wheels . | . . . . Hover . | . . . . Flight . | . . . . Fastest Speed 50 | 50 160 160 160 Average Speed 172 | 157 160 160 207 Slowest Speed 250 | 250 160 160 240 Overloaded Moves . | . . . . Propulsion Burnouts . | . . . . Robots Hopped . | . . . . Potential Cave-ins . | . . . . Cave-ins Triggered . | . . . . Exploration Rate (%) 40 | 4 96 26 34 Regions Visited 3 Branch Regions 1 Pre-discovered Areas 3 | . 2 1 . Known Exits Taken . | . . . . Unknown Exits Taken 3 | 1 1 1 . Scrap Searched . | . . . . Spaces Dug . | . . . . Terrain Destroyed 49 | . 23 . 26 Melee . | . . . . Projectile 12 | . 3 . 9 AOE 37 | . 20 . 17 Terrain Rammed . | . . . . Walls Destroyed . | . . . . Machines Disabled . | . . . . Actions | -11 -10 -10 -8 --------- Run | Yrd Mat Sub Mat Total 2120 | 79 1003 447 591 Wait 252 | 20 135 12 85 Move 1673 | 49 777 408 439 Hop . | . . . . Pick Up 38 | 4 15 1 18 Fast Attach 12 | 6 2 1 3 Attach 11 | . . 5 6 Detach 2 | . . . 2 Swap 21 | . 14 1 6 Drop 10 | . 8 1 1 Fire 96 | . 47 18 31 Melee 5 | . 5 . . Ram . | . . . . Kick . | . . . . Crush . | . . . . Escape Stasis . | . . . . Rewire . | . . . . Trap . | . . . . Miscellaneous . | . . . . Route ------- -11/Scrapyard -10/Materials (discovered 6 exits: [*Mat x3] / [*Min x2] / *Sub) -10/Subcaves (discovered 2 exits: *Mat / [*Scr]) -8/Materials (discovered 1 exit: [*Fac]) History --------- Turn | Location | Event 26 | -11/Scrapyard | Discovered new exit (range 14) 111 | -11/Scrapyard | Entered Materials 312 | -10/Materials | Build established: Mutant 366 | -10/Materials | Discovered new exit (range 8) 789 | -10/Materials | Discovered new exit (range 14) 907 | -10/Materials | Discovered new exit (range 12) 1064 | -10/Materials | Discovered new exit (range 5) 1480 | -10/Materials | Discovered new exit (range 15) 1675 | -10/Materials | Discovered new exit (range 3) 1681 | -10/Materials | Entered Subcaves 1682 | -10/Subcaves | Approached by a straggling Scientist 1765 | -10/Subcaves | Scientist uncovered a shortcut to Scraptown 1783 | -10/Subcaves | Learned location of Zion (-6) 1783 | -10/Subcaves | Met a Zionite searching for "candidates" 1891 | -10/Subcaves | Visited 4L-MR0's lab 1914 | -10/Subcaves | Found Cargo Legs 2140 | -10/Subcaves | Core integrity fell below 50% 2172 | -10/Subcaves | Lost 4 parts (2n1u1w) 2207 | -10/Subcaves | Shifting Twisted Machinery released Sub. Optics 2214 | -10/Subcaves | Shifting Twisted Machinery released Battle Cannon 2347 | -10/Subcaves | Discovered new exit (range 13) 2406 | -10/Subcaves | Entered Materials 2406 | -8/Materials | Evolved 4 slots: Propulsion x1, Utility x2, Weapon x1 2929 | -8/Materials | Discovered new exit (range 16) 3258 | -8/Materials | Build established: Gunner 3539 | -8/Materials | Self-destructed Last Messages --------------- 03322_ Acquired 1 matter. 03324_ Acquired 5 matter. 03363_ Acquired Minigun. 03376_ Acquired Hacking Suite. 03391_ Acquired Hpw. Tractor Beam. 03426_ W-25 Informer sends out distress signal. 03447_ Y-45 Defender Imp. Ion Engine blasted off. 03447_ Y-45 Defender destroyed. 03447_ Atomic Centrifuge disabled. 03453_ Dropped Wheel. 03454_ Acquired Lgt. Treads. 03455_ Acquired 40 matter. 03459_ Acquired 5 matter. 03460_ R-06 Scavenger collects Imp. Ion Engine. 03464_ R-06 Scavenger collects Wheel. 03487_ Connecting with Terminal... >>Access(Branch) No branch access points found. 03511_ K-01 Serf collects debris. Map ----- +----------------------------------------------------+ | ?????????????????????????????????????????????????? | | ?????????????????????????????????????????????????? | | ?????????????????????????????????????????????????? | | ?????????????????????????????????????????????????? | | ?????????????????????????????????????????????????? | | ?????????????????????????????????????????????????? | | ???????????????????????????????????????????????#?? | | ????????????????????????????????????????????? ??? | | ??????????????????????????###################+##?? | | ??????????????????????????? ! # ^ ##+ | | ??????????????????????????? # ^^ | | ???????????????????????????" """ """ # "T" ^^ | | ??????????????????????????"" """ """ # ##+ | | ???????????????????????# """ """ "" # ^ ^ #?? | | ?????????############??# ! # #?? | | ?????????# # !!! #???###########/## #?? | | ?????????# < # !!! #???# #?? | | ?????????# # !! #???# +? | | ?????????# + #???# ###+####? | | ?????????# # #???# #???????? | | ?????????# # #???# ########## #???????? | | ?????????# ########???# ########## #???????? | | ??######## #? #???# # ![ # #???????? | | ??# # # """ #???# # ![ # #???????? | | ??# ! # # """ #####/##+# ! [# #???????? | | ??# + + """ [## @ # # #???????? | | ??# ! # # ## # + #???????? | | ??# ! # # = ## """ # """ # #???????? | | ??# !! # #?####### """"" # """ # #???????? | | ??######## #???????# """"" # """ # #???????? | | ?????????# #???????# """"" # # #???????? | | ?????????# #???????# """ ##### #### #???????? | | ??######## #???????# #???###??# #???????? | | ??# ! # #???????# ! #????????# ######### | | ??# ! # #???????# #????????# # | | ??# # #???????# #?????#### # | | ??# # ############+########## #! | | ??# # # | | ??# # T + | | ??####+### # """ """ | | ??# ############ ##### # """ """ | | ??# # #?# #???## ## """ """ | | ??# # #?#! !#????# ########## | | ??# ######## #?##!!!!##????# #????????? | | ??# #??????# #??######?????# #????????? | | ??# #??#######+######?????????????# #????????? | | ### #### "#?????????????????# #????????? | | #% # ##### ##?????????????????# #????????? | | ! #### #???#!#?????????????????? ????????? | | #???# #?????????????????? ????????? | +----------------------------------------------------+ Best States ------------- Heat Dissipation 67 Energy Generation 14 Energy Capacity 265 Matter Stores 300 Matter Capacity 300 Sight Range 16 Terrain Scan Density 10 Armor Coverage 450 Propulsion Shielding 33 Evasion (%) 40 Targeting Accuracy 8 Recoil Reduction 3 Offensive Hacking 10 Item Schematics ----------------- None Robot Schematics ------------------ None Fabricated ------------ Nothing Repaired ---------- Nothing Studied --------- None Alien Tech Used ----------------- None Achievements -------------- None Challenges ------------ None Game ------ Seed LongswordTargetingJets Manual? 0 Play Time 00:20:36 Cumulative 316.7 hours Start 2026.09.01 @ 18:31:04 End 2026.09.01 @ 23:36:36 Sessions 2 Manual Loads 0 Difficulty Rogue Special Mode None Game No. 303 Rogue 249 Adventurer 54 Explorer 0 Win Type - Total 13 Types 9/0/1/1/0/0/0/1/0/1 Lore% 78 Gallery% 68 Achievement% 62 Wizard Run 0 Options --------- Layout 1 ASCII 0 Keyboard 0 Movement Mouse Keybinds 1 Fullscreen 2 Font 32/Tamsyn Map View 50x35 Zoom Use 0% Tactical HUD 1 Map Filters NONE Filters NONE Steam 1 RUN: f086d07c-f6ee-4c5e-8909-8552f1d9b695